[Event "GER-ch Youth-U18w 2022"]
[Site "Willingen"]
[Date "2022.06.08"]
[Round "5.9"]
[White "Albayrak, Nese Pinar"]
[Black "Sokyrko, Sofiia"]
[Result "1-0"]
[ECO "C40"]
[WhiteElo "1683"]
[BlackElo "1368"]
[Annotator "NA RC COMBH"]
[PlyCount "125"]
[EventDate "2022.06.05"]
[EventType "swiss"]
[EventRounds "9"]
[EventCountry "GER"]
[SourceTitle "playchess.com"]
[Source "ChessBase"]
[SourceQuality "1"]
[TimeControl "40/4500+30:900+30"]

1. e4 {[%emt 0:00:00]} e5 {[%emt 0:00:00]} 2. Nf3 {[%emt 0:00:00]} d5 {[%emt 0:00:00]} 3. exd5 {[%emt 0:00:00]} e4 {[%emt 0:00:00]} 4. Qe2 {[%emt 0:00:00]} Nf6 {[%emt 0:00:00]} 5. Nc3 {[%emt 0:00:00]} Be7 {[%emt 0:00:00]} 6. Nxe4 {[%emt 0:00:00]} O-O {[%emt 0:00:00]} 7. Nxf6+ {[%emt 0:00:00]} Bxf6 {[%emt 0:00:00]} 8. d4 {[%emt 0:00:00]} Re8 {[%emt 0:00:00]} 9. Be3 {[%emt 0:00:00]} Qxd5 {[%emt 0:00:00]} 10. Qb5 {[%emt 0:00:00]} Qd8 {[%emt 0:00:00]} 11. Be2 {[%emt 0:02:22]} b6 {[%emt 0:00:00]} 12. Qd3 {[%emt 0:14:44]} Nc6 {[%emt 0:00:00]} 13. c3 {[%emt 0:05:29]} Ne7 {[%emt 0:06:00]} 14. O-O {[%emt 0:05:31]} Bf5 {[%emt 0:05:02]} 15. Qd2 {[%emt 0:01:10]} Nd5 {[%emt 0:01:15]} 16. Bd3 {[%emt 0:11:43]} Nxe3 {[%emt 0:00:41]} 17. fxe3 {[%emt 0:04:30]} Bxd3 {[%emt 0:00:11]} 18. Qxd3 {[%emt 0:00:06]} Qe7 {[%emt 0:04:12]} 19. Rae1 {[%emt 0:03:11]} Rad8 20. e4 {[%emt 0:06:30]} g6 {[%emt 0:22:10]} 21. Re2 {[%emt 0:11:27]} c5 {[%emt 0:02:42]} 22. e5 {[%emt 0:02:41]} cxd4 {[%emt 0:00:45]} 23. cxd4 {[%emt 0:01:33]} Bg7 {[%emt 0:00:43]} 24. Rfe1 {[%emt 0:11:53]} Qe6 {[%emt 0:06:27]} 25. b3 {[%emt 0:02:28]} Re7 {[%emt 0:01:14]} 26. Ng5 {[%emt 0:00:22]} Qg4 {[%emt 0:00:47]} 27. Nf3 {[%emt 0:02:21]} Rde8 {[%emt 0:00:27]} 28. Re4 {[%emt 0:00:27]} Qd7 {[%emt 0:00:09]} 29. Qc4 {[%emt 0:00:53]} b5 {[%emt 0:00:36]} 30. Qc3 {[%emt 0:00:29]} f6 {[%emt 0:01:35]} 31. Qb2 {[%emt 0:00:34]} fxe5 {[%emt 0:00:20]} 32. Nxe5 {[%emt 0:00:32]} Qd5 {[%emt 0:03:32]} 33. R4e2 {[%emt 0:00:25]} Rd8 {[%emt 0:02:48]} 34. Re4 {[%emt 0:00:19]} Rf8 {[%emt 0:20:50]} 35. Qc3 {[%emt 0:00:27]} Bxe5 {[%emt 0:00:37]} 36. Rxe5 {[%emt 0:00:35]} Qf7 {[%emt 0:00:46]} 37. Qe3 {[%emt 0:00:44]} Rc7 {[%emt 0:01:29]} 38. Qe2 {[%emt 0:00:20]} a6 {[%emt 0:01:56]} 39. h3 {[%emt 0:00:25]} Qf4 {[%emt 0:01:21]} 40. Re4 {[%emt 0:00:25]} Qd6 {[%emt 0:00:22]} 41. Qd2 {[%emt 0:00:00]} Rcf7 {[%emt 0:00:00]} 42. Qh6 {[%emt 0:02:57]} Qg3 {[%emt 0:00:00]} 43. Re7 {[%emt 0:06:12]} Qf4 {[%emt 0:00:00]} 44. Qxf4 {[%emt 0:01:26]} Rxf4 {[%emt 0:00:00]} 45. Rd7 {[%emt 0:04:05]} Rf2 {[%emt 0:00:00]} 46. Ree7 {[%emt 0:00:13]} R8f7 {[%emt 0:00:00]} 47. Rxf7 {[%emt 0:01:06]} Rxf7 {[%emt 0:00:00]} 48. Rxf7 {[%emt 0:00:27]} Kxf7 {[%emt 0:00:00]} 49. Kf2 {[%emt 0:00:05]} Ke6 {[%emt 0:00:00]} 50. Ke3 {[%emt 0:00:39]} Kd5 {[%emt 0:00:00]} 51. a3 {[%emt 0:02:09]} a5 {[%emt 0:00:00]} 52. h4 {[%emt 0:00:18]} h5 {[%emt 0:00:00]} 53. Kd3 {[%emt 0:01:17]} Kd6 {[%emt 0:00:00]} 54. Ke4 {[%emt 0:00:07]} Ke6 {[%emt 0:00:00]} 55. d5+ {[%emt 0:00:11]} Kd6 {[%emt 0:00:00]} 56. Kd4 {[%emt 0:00:06]} b4 {[%emt 0:00:00]} 57. a4 {[%emt 0:00:14]} Kd7 {[%emt 0:00:00]} 58. Ke5 {[%emt 0:00:51]} Ke7 {[%emt 0:00:00]} 59. d6+ {[%emt 0:00:04]} Kd7 {[%emt 0:00:00]} 60. Kd5 {[%emt 0:00:05]} Kd8 {[%emt 0:00:00]} 61. Ke6 {[%emt 0:00:59]} Ke8 {[%emt 0:00:00]} 62. d7+ {[%emt 0:00:13]} Kd8 {[%emt 0:00:00]} 63. g3 {[%emt 0:00:05]} 1-0

[Event "GER-ch Youth-U18w 2022"]
[Site "Willingen"]
[Date "2022.06.08"]
[Round "5.10"]
[White "Wilmink, Anna"]
[Black "Kieckbusch, Lotta"]
[Result "1-0"]
[ECO "C20"]
[WhiteElo "1700"]
[BlackElo "1207"]
[Annotator "NA RC COMBH"]
[PlyCount "65"]
[EventDate "2022.06.05"]
[EventType "swiss"]
[EventRounds "9"]
[EventCountry "GER"]
[SourceTitle "playchess.com"]
[Source "ChessBase"]
[SourceQuality "1"]
[TimeControl "40/4500+30:900+30"]

1. e4 {[%emt 0:00:00]} e5 {[%emt 0:00:00]} 2. g3 {[%emt 0:00:00]} Nc6 {[%emt 0:00:00]} 3. Bg2 {[%emt 0:00:00]} Nf6 {[%emt 0:00:00]} 4. Nc3 {[%emt 0:00:00]} Bc5 {[%emt 0:00:00]} 5. Nge2 {[%emt 0:00:00]} d6 {[%emt 0:00:00]} 6. O-O {[%emt 0:00:00]} Bg4 {[%emt 0:00:00]} 7. Kh1 {[%emt 0:00:00]} O-O {[%emt 0:00:00]} 8. d3 {[%emt 0:00:00]} Qd7 {[%emt 0:06:19]} 9. Bg5 {[%emt 0:01:27]} Qe6 {[%emt 0:11:34]} 10. Nd5 {[%emt 0:08:40]} Bxe2 {[%emt 0:04:09]} 11. Qxe2 {[%emt 0:01:17]} Nd4 {[%emt 0:00:34]} 12. Qd1 {[%emt 0:09:44]} Nxd5 {[%emt 0:01:11]} 13. exd5 {[%emt 0:01:14]} Qf5 {[%emt 0:02:37]} 14. Bd2 {[%emt 0:09:06]} Qd7 {[%emt 0:05:25]} 15. f4 {[%emt 0:06:33]} f6 {[%emt 0:09:49]} 16. b4 {[%emt 0:08:56]} Bb6 {[%emt 0:01:51]} 17. Be4 {[%emt 0:10:57]} Nf5 {[%emt 0:15:40]} 18. Qg4 {[%emt 0:04:04]} g6 {[%emt 0:02:43]} 19. Rae1 {[%emt 0:09:04]} Rad8 {[%emt 0:01:28]} 20. c3 {[%emt 0:00:50]} Nh6 {[%emt 0:03:27]} 21. Qh4 {[%emt 0:07:07]} Nf5 {[%emt 0:01:46]} 22. Qh3 {[%emt 0:02:18]} Ne7 {[%emt 0:00:45]} 23. f5 {[%emt 0:02:22]} gxf5 {[%emt 0:04:09]} 24. Bxf5 {[%emt 0:02:23]} Nxf5 {[%emt 0:00:03]} 25. Rxf5 {[%emt 0:00:21]} Rf7 {[%emt 0:00:11]} 26. Qh5 {[%emt 0:00:43]} Kf8 {[%emt 0:00:56]} 27. Ref1 {[%emt 0:00:31]} Qe7 {[%emt 0:02:33]} 28. Bg5 {[%emt 0:00:36]} e4 {[%emt 0:00:52]} 29. Bxf6 {[%emt 0:00:32]} Rxf6 {[%emt 0:00:56]} 30. Rxf6+ {[%emt 0:00:05]} Kg8 {[%emt 0:00:22]} 31. Rf7 {[%emt 0:00:35]} Qxf7 {[%emt 0:00:46]} 32. Rxf7 {[%emt 0:00:05]} exd3 {[%emt 0:00:08]} 33. Qxh7# {[%emt 0:00:07]} 1-0

[Event "GER-ch Youth-U18w 2022"]
[Site "Willingen"]
[Date "2022.06.08"]
[Round "5.11"]
[White "Kosak, Karolina"]
[Black "Mueller, Sophie Charlotte"]
[Result "1/2-1/2"]
[ECO "C41"]
[WhiteElo "1471"]
[BlackElo "1509"]
[Annotator "NA RC COMBH"]
[PlyCount "65"]
[EventDate "2022.06.05"]
[EventType "swiss"]
[EventRounds "9"]
[EventCountry "GER"]
[SourceTitle "playchess.com"]
[Source "ChessBase"]
[SourceQuality "1"]
[TimeControl "40/4500+30:900+30"]

1. e4 {[%emt 0:00:00]} e5 {[%emt 0:00:00]} 2. Nf3 {[%emt 0:00:00]} d6 {[%emt 0:00:00]} 3. d4 {[%emt 0:00:00]} exd4 {[%emt 0:00:00]} 4. Nxd4 {[%emt 0:00:00]} Nf6 {[%emt 0:00:00]} 5. Nc3 {[%emt 0:00:00]} Be7 {[%emt 0:00:00]} 6. Bc4 {[%emt 0:00:00]} O-O {[%emt 0:00:00]} 7. O-O {[%emt 0:00:00]} Re8 {[%emt 0:00:00]} 8. Re1 {[%emt 0:00:00]} c6 {[%emt 0:00:00]} 9. Bb3 {[%emt 0:00:00]} b5 {[%emt 0:00:00]} 10. a3 {[%emt 0:00:04]} a5 {[%emt 0:00:00]} 11. Bf4 {[%emt 0:06:37]} Bf8 {[%emt 0:00:00]} 12. e5 {[%emt 0:16:22]} dxe5 {[%emt 0:03:15]} 13. Rxe5 {[%emt 0:07:12]} Bb7 {[%emt 0:04:10]} 14. Nf3 {[%emt 0:09:57]} Nbd7 {[%emt 0:04:11]} 15. Rxe8 {[%emt 0:01:03]} Qxe8 {[%emt 0:06:44]} 16. Ng5 {[%emt 0:03:03]} Ne5 {[%emt 0:03:13]} 17. Bxe5 {[%emt 0:02:00]} Qxe5 {[%emt 0:00:05]} 18. Nxf7 {[%emt 0:01:22]} Qf4 {[%emt 0:06:38]} 19. g3 {[%emt 0:10:02]} Qc7 {[%emt 0:00:41]} 20. Ng5+ {[%emt 0:05:57]} Kh8 {[%emt 0:00:27]} 21. Ne6 {[%emt 0:01:10]} Qb6 {[%emt 0:02:40]} 22. Nxf8 {[%emt 0:02:32]} Rxf8 {[%emt 0:00:02]} 23. Qd6 {[%emt 0:05:27]} Qxf2+ {[%emt 0:00:18]} 24. Kxf2 {[%emt 0:00:54]} Ne4+ {[%emt 0:00:12]} 25. Ke2 {[%emt 0:03:53]} Nxd6 {[%emt 0:00:31]} 26. Rd1 {[%emt 0:01:23]} Ne8 {[%emt 0:05:15]} 27. Rd7 {[%emt 0:00:55]} Bc8 {[%emt 0:02:50]} 28. Rf7 {[%emt 0:02:31]} Rxf7 {[%emt 0:01:37]} 29. Bxf7 {[%emt 0:00:02]} Nd6 {[%emt 0:00:57]} 30. Bb3 {[%emt 0:01:18]} a4 {[%emt 0:02:03]} 31. Ba2 {[%emt 0:00:10]} Bf5 {[%emt 0:01:05]} 32. Kd2 {[%emt 0:01:42]} g5 {[%emt 0:20:52]} 33. b3 {[%emt 0:02:03]} 1/2-1/2

[Event "GER-ch Youth-U18w 2022"]
[Site "Willingen"]
[Date "2022.06.08"]
[Round "6.1"]
[White "Dietz, Kristin"]
[Black "Bardorz, Jana"]
[Result "0-1"]
[ECO "C77"]
[WhiteElo "1707"]
[BlackElo "1974"]
[Annotator "TA"]
[PlyCount "120"]
[EventDate "2022.06.05"]
[EventType "swiss"]
[EventRounds "9"]
[EventCountry "GER"]
[SourceTitle "playchess.com"]
[Source "ChessBase"]
[SourceQuality "1"]
[TimeControl "40/4500+30:900+30"]

{[%evp 16,120,25,-7,0,-28,-25,-33,-46,-49,-47,-88,-26,-65,-66,-91,-100,-124,-62,-58,-56,-77,-81,-362,-227,-334,-318,-316,-295,-278,-291,-277,-283,-304,-300,-297,-297,-308,-303,-294,-294,-289,-277,-283,-267,-396,-393,-465,-489,-466,-384,-486,-454,-493,-489,-553,-553,-539,-492,-723,-702,-883,-911,-1045,-1032,-4802,-1407,-2016,-1895,-1611,-1485,-29964,-29967,-29966,-29967,-29967,-29969,-29968,-29966,-29973,-29975,-29975,-29976,-29976,-29975,-29975,-29972,-29974,-29973,-29973,-29974,-29974,-29975,-29975,-29976,-29976,-29976,-29978,-29977,-29977,-29978,-29977,-29977,-29985,-29986,-29986,-29987]} 1. e4 {[%emt 0:00:00]} e5 {[%emt 0:00:00][%cal Be7e5,Be5d4][%mdl 32]} 2. Nf3 {[%emt 0:00:00]} Nc6 {[%emt 0:00:00]} 3. Bb5 {[%emt 0:00:00]} a6 {[%emt 0:00:00]} 4. Ba4 {[%emt 0:00:00]} Nf6 {[%emt 0:00:00]} 5. d4 exd4 {[%emt 0:00:00]} 6. O-O {[%emt 0:00:00]} Be7 {[%emt 0:00:00]} 7. Re1 {[%emt 0:00:00]} O-O {[%emt 0:05:13]} 8. e5 {[%emt 0:00:00]} Nd5 {[%emt 0:04:21]} 9. c3 {[%emt 0:00:00] 9.Bb3 gains popularity.} Nb6 {[%emt 0:04:44] C84: Closed Ruy Lopez: Unusual White 6th moves.} 10. cxd4 {[%emt 0:00:54]} Nxa4 {[%emt 0:05:50]} 11. Qxa4 {[%emt 0:00:33]} d6 {[%emt 0:05:36] Black is slightly better.} 12. Bf4 {[%emt 0:05:49] [#]} dxe5 $146 {[%emt 0:03:00]} ({Predecessor:} 12... Bf5 13. a3 dxe5 14. dxe5 Bc5 15. Bg5 Qd7 16. Nc3 Nd4 17. Nxd4 Qxa4 18. Nxa4 Bxd4 {½-½ (43) Ivanenko,O (2001)-Goroshkova,L (1977) Lubin 2009}) 13. dxe5 {[%emt 0:00:19] [#]} Bg4 {[%emt 0:07:32]} (13... Nb4 $1 $17 {...b5 is the strong threat.} 14. Re2 b5) 14. Nbd2 {[%emt 0:05:35]} Qd3 {[%emt 0:05:04]} 15. Rad1 {[%emt 0:08:48]} Qg6 {[%emt 0:00:53] Black is more active.} 16. Bg3 {[%emt 0:10:52]} Rad8 {[%emt 0:02:19]} ({Black should try} 16... Bb4 $17 {aiming for ...b5.} 17. a3 Bxf3 18. gxf3 b5) 17. h3 $15 {[%emt 0:03:43]} Bf5 {[%emt 0:01:14] Hoping for ...Bc2.} 18. Nb3 {[%emt 0:09:39]} Bb4 {[%emt 0:05:46]} 19. Nbd4 {[%emt 0:08:04][%mdl 8192] Prevents Bc2. Now White is beyond hope.} Bxe1 {[%emt 0:08:24] This bishop pair is nice.} 20. Nxc6 {[%emt 0:10:24]} (20. Rxe1 $142 Nxd4 21. Nxd4) 20... Bxf2+ $19 {[%emt 0:03:59]} ({Stronger than} 20... bxc6 21. Rxe1 Be6 22. Qxc6 $17) ({Wrong is} 20... Qxc6 $2 21. Qxc6 Bxf2+ 22. Kxf2 $19) 21. Kxf2 {[%emt 0:00:14]} Qxc6 {[%emt 0:00:53]} 22. Qxc6 {[%emt 0:00:35]} bxc6 {[%emt 0:00:09]} 23. Rc1 {[%emt 0:01:20]} Be4 {[%emt 0:00:59]} 24. Ke3 {[%emt 0:03:08]} Bd5 {[%emt 0:01:26]} 25. b3 {[%emt 0:02:04]} Rfe8 {[%emt 0:02:11]} 26. Rc2 {[%emt 0:02:11]} f6 {[%emt 0:03:12]} 27. Nd4 {[%emt 0:01:15]} fxe5 {[%emt 0:02:54]} 28. Nxc6 {[%emt 0:01:04]} Bxc6 {[%emt 0:00:50]} 29. Rxc6 {[%emt 0:00:04][%mdl 4096] Endgame KRR-KRB} Rd6 {[%emt 0:02:58]} 30. Rxc7 {[%emt 0:00:52]} (30. Rc2 {might work better.}) 30... Rg6 {[%emt 0:00:26]} 31. Be1 {[%emt 0:01:36]} Rxg2 {[%emt 0:00:17]} 32. a4 {[%emt 0:00:18]} Rb2 {[%emt 0:01:19]} 33. Rb7 {[%emt 0:01:08]} Re6 {[%emt 0:03:16]} 34. h4 {[%emt 0:00:47]} h5 {[%emt 0:04:03]} 35. b4 {[%emt 0:01:08]} Kh7 {[%emt 0:00:22]} 36. a5 {[%emt 0:04:14]} Kg6 {[%emt 0:00:35]} 37. Rb6 {[%emt 0:00:39]} (37. Bc3 $142 Rc2 38. Be1) 37... Kf5 {[%emt 0:00:19]} 38. Kd3 {[%emt 0:01:34]} e4+ {[%emt 0:00:58]} 39. Kd4 {[%emt 0:01:42]} Rb1 {[%emt 0:00:46]} 40. Bc3 {[%emt 0:01:18]} e3 {[%emt 0:01:09]} (40... Rd1+ $142 41. Kc4 e3 42. Rxe6 Kxe6) 41. Rxe6 {[%emt 0:16:13]} Kxe6 {[%emt 0:15:17]} 42. Kxe3 {[%emt 0:00:14] KR-KB} Kd5 {[%emt 0:00:00] Strongly threatening ...Rh1.} 43. Bxg7 {[%emt 0:00:00]} Rxb4 {[%emt 0:00:00] Black mates.} 44. Bf6 {[%emt 0:00:00]} Ke6 {[%emt 0:00:00]} 45. Bg5 {[%emt 0:00:00]} Ra4 {[%emt 0:00:00]} 46. Bd8 {[%emt 0:00:00]} Kd7 {[%emt 0:00:00]} 47. Bb6 {[%emt 0:00:00]} Rxh4 {[%emt 0:00:00]} 48. Kf3 {[%emt 0:00:00]} Ra4 {[%emt 0:00:00]} 49. Kg3 {[%emt 0:00:00]} Ke6 {[%emt 0:00:00]} 50. Kh3 {[%emt 0:00:00]} Kf5 {[%emt 0:00:00]} 51. Bd8 {[%emt 0:00:00]} Rg4 {[%emt 0:00:00]} 52. Bc7 {[%emt 0:00:00]} Ke4 {[%emt 0:00:00]} 53. Bd8 {[%emt 0:00:00]} Kd5 {[%emt 0:00:00]} 54. Bb6 {[%emt 0:00:00]} Kc6 {[%emt 0:00:00]} 55. Bf2 {[%emt 0:00:00]} Kb5 {[%emt 0:00:00]} 56. Be1 {[%emt 0:00:00]} Ra4 {[%emt 0:00:00]} 57. Bd2 {[%emt 0:00:00]} Rxa5 {[%emt 0:00:00]} 58. Kh4 {[%emt 0:00:00]} Ra2 {[%emt 0:00:00]} 59. Bf4 {[%emt 0:00:00]} Ra4 {[%emt 0:00:00]} 60. Kg5 {[%emt 0:00:00] [#]} Rxf4 $1 {[%emt 0:00:00] Weighted Error Value: White=0.87/Black=0.15 (very precise)} 0-1

[Event "GER-ch Youth-U18w 2022"]
[Site "Willingen"]
[Date "2022.06.08"]
[Round "6.2"]
[White "Cheredzhiyska, Iva"]
[Black "Rudolph, Eva"]
[Result "0-1"]
[ECO "B40"]
[WhiteElo "1696"]
[BlackElo "1860"]
[Annotator "NA RC COMBH"]
[PlyCount "50"]
[EventDate "2022.06.05"]
[EventType "swiss"]
[EventRounds "9"]
[EventCountry "GER"]
[SourceTitle "playchess.com"]
[Source "ChessBase"]
[SourceQuality "1"]
[TimeControl "40/4500+30:900+30"]

1. e4 {[%emt 0:00:00]} c5 {[%emt 0:00:00]} 2. Nf3 {[%emt 0:00:00]} e6 {[%emt 0:00:00]} 3. c3 {[%emt 0:00:00]} d5 {[%emt 0:00:00]} 4. exd5 {[%emt 0:00:00]} exd5 {[%emt 0:00:00]} 5. d4 {[%emt 0:00:00]} Nc6 {[%emt 0:00:00]} 6. Bb5 {[%emt 0:00:00]} Bd6 {[%emt 0:00:00]} 7. O-O {[%emt 0:00:00]} Nf6 {[%emt 0:00:00]} 8. Re1+ {[%emt 0:00:00]} Be6 {[%emt 0:00:00]} 9. Ng5 {[%emt 0:00:31]} O-O {[%emt 0:00:00]} 10. Nxe6 {[%emt 0:03:41]} fxe6 {[%emt 0:00:00]} 11. Bxc6 {[%emt 0:02:39]} bxc6 {[%emt 0:00:00]} 12. Bg5 {[%emt 0:06:22]} Qc7 {[%emt 0:02:24]} 13. h3 {[%emt 0:01:41]} Bh2+ {[%emt 0:10:17]} 14. Kh1 {[%emt 0:01:32]} Ne4 {[%emt 0:00:41]} 15. Bh4 {[%emt 0:05:54]} Nxf2+ {[%emt 0:08:26]} 16. Bxf2 Rxf2 17. Qg4 {[%emt 0:03:50]} Raf8 {[%emt 0:06:04]} 18. Qxe6+ {[%emt 0:06:30]} Kh8 {[%emt 0:00:18]} 19. Na3 {[%emt 0:02:49]} Qg3 {[%emt 0:13:35]} 20. Qg4 {[%emt 0:02:29]} Qxg4 {[%emt 0:00:32]} 21. hxg4 {[%emt 0:00:09]} Bg3 {[%emt 0:00:19]} 22. Kg1 {[%emt 0:05:15]} R2f6 {[%emt 0:02:53]} 23. Red1 {[%emt 0:04:00]} cxd4 {[%emt 0:16:20]} 24. cxd4 {[%emt 0:00:33]} Bf2+ {[%emt 0:00:44]} 25. Kh2 {[%emt 0:04:59]} Rh6# {[%emt 0:00:11]} 0-1

[Event "GER-ch Youth-U18w 2022"]
[Site "Willingen"]
[Date "2022.06.08"]
[Round "6.3"]
[White "Heutling, Elina"]
[Black "Falke, Ornella"]
[Result "1-0"]
[ECO "B90"]
[WhiteElo "1798"]
[BlackElo "1844"]
[Annotator "NA RC COMBH"]
[PlyCount "83"]
[EventDate "2022.06.05"]
[EventType "swiss"]
[EventRounds "9"]
[EventCountry "GER"]
[SourceTitle "playchess.com"]
[Source "ChessBase"]
[SourceQuality "1"]
[TimeControl "40/4500+30:900+30"]

1. e4 {[%emt 0:00:00]} c5 {[%emt 0:00:00]} 2. Nf3 {[%emt 0:00:00]} d6 {[%emt 0:00:00]} 3. d4 {[%emt 0:00:00]} cxd4 {[%emt 0:00:00]} 4. Nxd4 {[%emt 0:00:00]} Nf6 {[%emt 0:00:00]} 5. Nc3 {[%emt 0:00:00]} a6 {[%emt 0:00:00]} 6. Be3 {[%emt 0:00:00]} e5 {[%emt 0:00:00]} 7. Nb3 {[%emt 0:00:00]} Be7 {[%emt 0:00:00]} 8. h3 {[%emt 0:00:00]} Be6 {[%emt 0:00:00]} 9. f4 {[%emt 0:01:28]} exf4 {[%emt 0:00:00]} 10. Bxf4 {[%emt 0:00:08]} Nc6 {[%emt 0:00:00]} 11. Qd2 {[%emt 0:09:11]} b5 {[%emt 0:01:00]} 12. Bd3 {[%emt 0:03:26]} Rc8 {[%emt 0:07:59]} 13. O-O {[%emt 0:05:41]} O-O {[%emt 0:02:10]} 14. a4 {[%emt 0:08:27]} b4 {[%emt 0:06:01]} 15. Nd5 {[%emt 0:07:04]} Ne5 {[%emt 0:18:13]} 16. Bxe5 {[%emt 0:23:39]} dxe5 {[%emt 0:00:17]} 17. Nxf6+ {[%emt 0:01:29]} Bxf6 {[%emt 0:00:32]} 18. Qe2 {[%emt 0:03:09]} a5 {[%emt 0:02:18]} 19. Rad1 {[%emt 0:03:43]} Be7 {[%emt 0:07:39]} 20. Kh1 {[%emt 0:01:54]} Qc7 {[%emt 0:07:58]} 21. Nd2 {[%emt 0:01:38]} Rcd8 {[%emt 0:01:13]} 22. b3 {[%emt 0:01:02]} Bc5 {[%emt 0:02:53]} 23. Bc4 {[%emt 0:01:04]} Bc8 {[%emt 0:03:25]} 24. Nf3 {[%emt 0:00:49]} h6 {[%emt 0:07:07]} 25. Nh4 {[%emt 0:06:27]} Rxd1 {[%emt 0:01:59]} 26. Qxd1 {[%emt 0:01:37]} Kh7 {[%emt 0:06:35]} 27. Qf3 {[%emt 0:03:08]} Qe7 {[%emt 0:00:10]} 28. Nf5 {[%emt 0:01:12]} Qg5 {[%emt 0:01:23]} 29. Qg3 {[%emt 0:01:25]} Bxf5 {[%emt 0:01:13]} 30. Qxe5 {[%emt 0:01:28]} Bxe4 {[%emt 0:06:42]} 31. Qxe4+ {[%emt 0:00:10]} f5 {[%emt 0:00:17]} 32. Qd5 {[%emt 0:00:34]} Bb6 {[%emt 0:01:14]} 33. Bd3 {[%emt 0:00:31]} Bc7 {[%emt 0:02:17]} 34. Qf3 {[%emt 0:01:11]} g6 {[%emt 0:00:27]} 35. Re1 {[%emt 0:00:30]} Qf6 {[%emt 0:00:31]} 36. Bc4 {[%emt 0:00:43]} Qd6 {[%emt 0:00:32]} 37. g3 {[%emt 0:00:24]} f4 {[%emt 0:01:19]} 38. Re6 {[%emt 0:00:37]} Qd8 {[%emt 0:00:28]} 39. Bd3 {[%emt 0:00:21]} Rf6 {[%emt 0:00:30]} 40. Qe4 {[%emt 0:00:38]} fxg3 {[%emt 0:00:35]} 41. Re7+ {[%emt 0:00:00]} Kg8 {[%emt 0:00:00]} 42. Re8+ {[%emt 0:00:00]} 1-0

[Event "GER-ch Youth-U18w 2022"]
[Site "Willingen"]
[Date "2022.06.08"]
[Round "6.4"]
[White "Orlova, Alicia"]
[Black "Dartmann Aubanell, Catriona"]
[Result "0-1"]
[ECO "C00"]
[WhiteElo "1724"]
[BlackElo "1874"]
[Annotator "NA RC COMBH"]
[PlyCount "110"]
[EventDate "2022.06.05"]
[EventType "swiss"]
[EventRounds "9"]
[EventCountry "GER"]
[SourceTitle "playchess.com"]
[Source "ChessBase"]
[SourceQuality "1"]
[TimeControl "40/4500+30:900+30"]

1. e4 {[%emt 0:00:00]} e6 {[%emt 0:00:00]} 2. d4 {[%emt 0:00:00]} d5 {[%emt 0:00:00]} 3. Bd3 {[%emt 0:00:00]} dxe4 {[%emt 0:00:00]} 4. Bxe4 {[%emt 0:00:00]} Nf6 {[%emt 0:00:00]} 5. Bd3 {[%emt 0:00:00]} c5 {[%emt 0:00:00]} 6. dxc5 {[%emt 0:00:00]} Bxc5 {[%emt 0:00:00]} 7. Nf3 {[%emt 0:00:00]} Nc6 {[%emt 0:00:00]} 8. O-O {[%emt 0:00:00]} O-O {[%emt 0:00:00]} 9. a3 {[%emt 0:00:00]} e5 {[%emt 0:02:13]} 10. Nc3 {[%emt 0:00:00]} Bg4 {[%emt 0:04:22]} 11. h3 {[%emt 0:00:40]} Bh5 {[%emt 0:03:40]} 12. Bg5 {[%emt 0:11:40]} Be7 {[%emt 0:18:02]} 13. Be2 {[%emt 0:09:51]} Qb6 {[%emt 0:05:27]} 14. Be3 {[%emt 0:09:15]} Qd8 {[%emt 0:05:16]} 15. Nh4 {[%emt 0:07:28]} Bxe2 {[%emt 0:04:59]} 16. Nxe2 {[%emt 0:03:10]} Qc7 {[%emt 0:01:49]} 17. c3 {[%emt 0:04:01]} Rad8 {[%emt 0:03:36]} 18. Qc2 {[%emt 0:00:17]} Nd5 {[%emt 0:00:43]} 19. Nf5 {[%emt 0:00:32]} Nxe3 {[%emt 0:00:35]} 20. Nxe3 {[%emt 0:01:24]} Bg5 {[%emt 0:01:56]} 21. Kh1 {[%emt 0:06:38]} Qb6 {[%emt 0:07:18]} 22. Nd1 {[%emt 0:08:22]} Na5 {[%emt 0:08:12]} 23. Qf5 {[%emt 0:02:21]} Nb3 {[%emt 0:01:46]} 24. Qxg5 {[%emt 0:01:52]} Nxa1 {[%emt 0:00:14]} 25. Qxe5 {[%emt 0:00:22]} Rfe8 {[%emt 0:03:12]} 26. Qh5 {[%emt 0:00:18]} Nb3 {[%emt 0:02:11]} 27. Ne3 {[%emt 0:03:24]} Nd2 {[%emt 0:01:50]} 28. Re1 {[%emt 0:00:38]} Ne4 {[%emt 0:00:43]} 29. Nd4 {[%emt 0:01:29]} Nxf2+ {[%emt 0:01:35]} 30. Kg1 {[%emt 0:00:42]} Nd3 {[%emt 0:00:50]} 31. Rf1 {[%emt 0:01:08]} Qg6 {[%emt 0:00:45]} 32. Qf3 {[%emt 0:01:24]} Ne5 {[%emt 0:00:44]} 33. Qxb7 {[%emt 0:01:25]} Rd7 {[%emt 0:01:17]} 34. Qb3 {[%emt 0:04:39]} Nc6 {[%emt 0:01:42]} 35. Qb5 {[%emt 0:08:10]} Rc7 {[%emt 0:05:40]} 36. Nd5 {[%emt 0:01:07]} Rcc8 {[%emt 0:00:05]} 37. Qb7 {[%emt 0:01:00]} Kh8 {[%emt 0:02:22]} 38. Nc7 {[%emt 0:00:25]} Nxd4 {[%emt 0:00:41]} 39. Nxe8 {[%emt 0:00:44]} Ne2+ {[%emt 0:00:04]} 40. Kh1 {[%emt 0:00:14]} Rxe8 {[%emt 0:00:12]} 41. Rd1 {[%emt 0:00:00]} Nf4 {[%emt 0:00:00]} 42. Rd2 {[%emt 0:00:00]} Qg3 {[%emt 0:00:00]} ({Don't blunder} 42... Re1+ $2 43. Kh2 Re8 44. Qxa7 $19) 43. Qe7 {[%emt 0:00:00]} (43. Qe4 {is the only way for White.} Rc8 44. Qd4) 43... Qe1+ {[%emt 0:03:52]} 44. Qxe1 {[%emt 0:00:00]} Rxe1+ {[%emt 0:00:03]} 45. Kh2 {[%emt 0:00:00]} g5 {[%emt 0:01:04]} 46. Rd7 $2 {[%emt 0:00:00]} (46. g3 Ne6 47. Rd7) 46... Re2 {[%emt 0:01:41]} 47. Rxf7 {[%emt 0:01:05]} Rxg2+ {[%emt 0:00:32]} 48. Kh1 {[%emt 0:00:08]} Rxb2 {[%emt 0:00:13]} 49. h4 $19 {[%emt 0:01:36]} h6 {[%emt 0:02:06]} 50. hxg5 {[%emt 0:02:14]} hxg5 {[%emt 0:00:01]} 51. Rxa7 {[%emt 0:00:52]} g4 {[%emt 0:02:17]} 52. Ra4 {[%emt 0:02:11]} Rf2 {[%emt 0:00:24]} 53. Rb4 {[%emt 0:08:18]} g3 {[%emt 0:00:41]} 54. Rb1 {[%emt 0:00:25]} g2+ {[%emt 0:01:32]} 55. Kh2 {[%emt 0:00:29]} Rf1 {[%emt 0:00:28]} 0-1